fUST/lending_fUST_20250210
["ID","MTS","AMOUNT","RATE_DAILY","PERIOD"]
[352565560,1739171441975,-500.0,0.00011917,2]
[352565562,1739171441985,-569.71,0.00011917,2]
[352565564,1739171441995,-5036.88,0.00011917,2]
[352565566,1739171442005,-500.0,0.00011917,2]
[352565568,1739171442015,-500.0,0.00011917,2]
[352565570,1739171442024,-750.28,0.00011917,2]
[352565572,1739171442035,-500.0,0.00011917,2]
[352565574,1739171442045,-2056.79,0.00011917,2]
[352565576,1739171442054,-500.0,0.00011917,2]
[352565578,1739171442064,-3088.79,0.00011917,2]
[352565580,1739171442073,-500.0,0.00011917,2]
[352565582,1739171442084,-500.0,0.00011917,2]
[352565584,1739171442094,-511.08,0.00011917,2]
[352565586,1739171442103,-500.0,0.00011917,2]
[352565588,1739171442113,-622.98,0.00011917,2]
[352565590,1739171442123,-500.0,0.00011917,2]
[352565592,1739171442132,-500.0,0.00011917,2]
[352565594,1739171442141,-710.23,0.00011917,2]
[352565596,1739171442151,-674.73,0.00011917,2]
[352565598,1739171442160,-701.2,0.00011917,2]
[352565600,1739171442170,-1997.24,0.00011917,2]
[352565602,1739171442179,-985.96562688,0.00011955,2]
[352565603,1739171442188,-500.0,0.00012054,2]
[352565604,1739171442198,-569.71,0.00012054,2]
[352565605,1739171442208,-5036.88,0.00012054,2]
[352565606,1739171442218,-500.0,0.00012054,2]
[352565607,1739171442227,-500.0,0.00012054,2]
[352565608,1739171442236,-750.28,0.00012054,2]
[352565609,1739171442245,-500.0,0.00012054,2]
[352565610,1739171442254,-2056.79,0.00012054,2]
[352565611,1739171442263,-500.0,0.00012054,2]
[352565612,1739171442272,-3088.79,0.00012054,2]
[352565613,1739171442282,-500.0,0.00012054,2]
[352565614,1739171442291,-500.0,0.00012054,2]
[352565615,1739171442300,-511.08,0.00012054,2]
[352565616,1739171442309,-259.7,0.00012054,2]
[352565617,1739171442318,-622.98,0.00012054,2]
[352565618,1739171442327,-500.0,0.00012054,2]
[352565619,1739171442337,-415.7,0.00012054,2]
[352565621,1739171442346,-710.23,0.00012054,2]
[352565623,1739171442355,-674.73,0.00012054,2]
[352565625,1739171442364,-701.2,0.00012054,2]
[352565627,1739171442373,-1997.24,0.00012054,2]
[352565629,1739171442383,-985.96562688,0.00012055,2]
[352565631,1739171442392,-24320.9499349,0.00012091,2]
[352565633,1739171442401,-985.96562688,0.00012155,2]
[352565634,1739171442411,-500.0,0.00012191,2]
[352565636,1739171442420,-569.71,0.00012191,2]
[352565638,1739171442429,-5036.88,0.00012191,2]
[352565640,1739171442439,-500.0,0.00012191,2]
[352565642,1739171442448,-500.0,0.00012191,2]
[352565643,1739171442457,-750.28,0.00012191,2]
[352565645,1739171442467,-500.0,0.00012191,2]
[352565646,1739171442477,-2056.79,0.00012191,2]
[352565647,1739171442487,-500.0,0.00012191,2]
[352565649,1739171442497,-3088.79,0.00012191,2]
[352565651,1739171442506,-589.4,0.00012191,2]
[352565653,1739171442515,-500.0,0.00012191,2]
[352565655,1739171442525,-511.08,0.00012191,2]
[352565656,1739171442535,-622.98,0.00012191,2]
[352565657,1739171442544,-500.0,0.00012191,2]
[352565658,1739171442553,-710.23,0.00012191,2]
[352565659,1739171442562,-674.73,0.00012191,2]
[352565660,1739171442572,-701.2,0.00012191,2]
[352565661,1739171442581,-1997.24,0.00012191,2]
[352565662,1739171442591,-503.21350288,0.000122,2]
[352565663,1739171442600,-500.0,0.00012211,2]
[352565664,1739171442610,-985.96562688,0.00012255,2]
[352565665,1739171442619,-500.0,0.00012328,2]
[352565666,1739171442628,-569.71,0.00012328,2]
[352565667,1739171442638,-5036.88,0.00012328,2]
[352565668,1739171442652,-500.0,0.00012328,2]
[352565669,1739171442661,-341.08,0.00012328,2]
[352565670,1739171442671,-750.28,0.00012328,2]
[352565671,1739171442681,-500.0,0.00012328,2]
[352565672,1739171442691,-2056.79,0.00012328,2]
[352565673,1739171442701,-500.0,0.00012328,2]
[352565674,1739171442711,-3088.79,0.00012328,2]
[352565675,1739171442722,-500.0,0.00012328,2]
[352565676,1739171442732,-511.08,0.00012328,2]
[352565677,1739171442742,-622.98,0.00012328,2]
[352565678,1739171442751,-500.0,0.00012328,2]
[352565679,1739171442761,-710.23,0.00012328,2]
[352565680,1739171442771,-674.73,0.00012328,2]
[352565681,1739171442780,-701.2,0.00012328,2]
[352565682,1739171442789,-1997.24,0.00012328,2]
[352565683,1739171442798,-985.96562688,0.00012355,2]
[352565684,1739171442808,-985.96562688,0.00012455,2]
[352565685,1739171442817,-500.0,0.00012465,2]
[352565686,1739171442827,-569.71,0.00012465,2]
[352565687,1739171442836,-5036.88,0.00012465,2]
[352565689,1739171442945,-500.0,0.00012465,2]
[352565691,1739171442955,-750.28,0.00012465,2]
[352565692,1739171442965,-500.0,0.00012465,2]
[352565693,1739171442975,-2056.79,0.00012465,2]
[352565694,1739171442984,-500.0,0.00012465,2]
[352565695,1739171442993,-3088.79,0.00012465,2]
[352565696,1739171443002,-500.0,0.00012465,2]
[352565697,1739171443011,-511.08,0.00012465,2]
[352565698,1739171443021,-622.98,0.00012465,2]
[352565699,1739171443036,-508.16,0.00012465,2]
[352565700,1739171443046,-710.23,0.00012465,2]
[352565701,1739171443055,-674.73,0.00012465,2]
[352565702,1739171443064,-701.2,0.00012465,2]
[352565703,1739171443073,-1997.24,0.00012465,2]
[352565704,1739171443082,-1000.0,0.00012485,2]
[352565705,1739171443091,-985.96562688,0.00012555,2]
[352565706,1739171443100,-500.0,0.00012602,2]
[352565707,1739171443110,-569.71,0.00012602,2]
[352565708,1739171443119,-5036.88,0.00012602,2]
[352565709,1739171443129,-500.0,0.00012602,2]
[352565710,1739171443139,-750.28,0.00012602,2]
[352565712,1739171443149,-500.0,0.00012602,2]
[352565713,1739171443159,-2056.79,0.00012602,2]
[352565714,1739171443168,-500.0,0.00012602,2]
[352565716,1739171443178,-3088.79,0.00012602,2]
[352565717,1739171443187,-500.0,0.00012602,2]
[352565719,1739171443196,-511.08,0.00012602,2]
[352565721,1739171443206,-622.98,0.00012602,2]
[352565722,1739171443216,-710.23,0.00012602,2]
[352565724,1739171443225,-674.73,0.00012602,2]
[352565727,1739171443235,-701.2,0.00012602,2]
[352565729,1739171443245,-1997.24,0.00012602,2]
[352565730,1739171443254,-985.96562688,0.00012655,2]
[352565731,1739171443263,-542.77,0.00012739,2]
[352565732,1739171443273,-569.71,0.00012739,2]
[352565733,1739171443283,-5036.88,0.00012739,2]
[352565734,1739171443292,-500.0,0.00012739,2]
[352565735,1739171443302,-750.28,0.00012739,2]
[352565736,1739171443312,-500.0,0.00012739,2]
[352565737,1739171443322,-2056.79,0.00012739,2]
[352565738,1739171443332,-500.0,0.00012739,2]
[352565739,1739171443341,-3088.79,0.00012739,2]
[352565741,1739171443351,-500.0,0.00012739,2]
[352565743,1739171443361,-511.08,0.00012739,2]
[352565745,1739171443370,-622.98,0.00012739,2]
[352565747,1739171443379,-710.23,0.00012739,2]
[352565749,1739171443390,-674.73,0.00012739,2]
[352565751,1739171443399,-701.2,0.00012739,2]
[352565752,1739171443409,-1997.24,0.00012739,2]
[352565754,1739171443418,-985.96562688,0.00012755,2]
[352565756,1739171443428,-985.96562688,0.00012855,2]
[352565758,1739171443438,-210.86320549,0.00012865,2]
[352565759,1739171443447,-569.71,0.00012876,2]
[352565760,1739171443456,-5036.88,0.00012876,2]
[352565761,1739171443466,-500.0,0.00012876,2]
[352565762,1739171443476,-750.28,0.00012876,2]
[352565763,1739171443485,-500.0,0.00012876,2]
[352565764,1739171443495,-2056.79,0.00012876,2]
[352565765,1739171443505,-500.0,0.00012876,2]
[352565766,1739171443515,-3088.79,0.00012876,2]
[352565767,1739171443524,-500.0,0.00012876,2]
[352565768,1739171443533,-511.08,0.00012876,2]
[352565769,1739171443543,-622.98,0.00012876,2]
[352565771,1739171443552,-710.23,0.00012876,2]
[352565772,1739171443562,-674.73,0.00012876,2]
[352565774,1739171443572,-701.2,0.00012876,2]
[352565776,1739171443582,-1997.24,0.00012876,2]
[352565778,1739171443592,-459.50475519,0.000129,2]
[352565780,1739171443601,-459.50475515,0.000129,2]
[352565781,1739171443612,-459.50475515,0.000129,2]
[352565782,1739171443622,-985.96562688,0.00012955,2]
[352565784,1739171443631,-151.0,0.00013013,2]
[352565786,1739171443643,-569.71,0.00013013,2]
[352565787,1739171443655,-5036.88,0.00013013,2]
[352565788,1739171443664,-367.15,0.00013013,2]
[352565789,1739171443674,-750.28,0.00013013,2]
[352565790,1739171443685,-500.0,0.00013013,2]
[352565791,1739171443695,-2056.79,0.00013013,2]
[352565792,1739171443704,-253.695,0.00013013,2]
[352565793,1739171443714,-3088.79,0.00013013,2]
[352565794,1739171443725,-500.0,0.00013013,2]
[352565795,1739171443735,-511.08,0.00013013,2]
[352565796,1739171443744,-622.98,0.00013013,2]
[352565797,1739171443754,-710.23,0.00013013,2]
[352565798,1739171443763,-674.73,0.00013013,2]
[352565799,1739171443773,-701.2,0.00013013,2]
[352565800,1739171443784,-985.96562688,0.00013055,2]
[352565801,1739171443795,-569.71,0.0001315,2]
[352565802,1739171443805,-5036.88,0.0001315,2]
[352565803,1739171443816,-750.28,0.0001315,2]
[352565804,1739171443826,-296.75854722,0.0001315,2]
[352565805,1739171443836,-2056.79,0.0001315,2]
[352565806,1739171443845,-3088.79,0.0001315,2]
[352565807,1739171443854,-500.0,0.0001315,2]
[352565808,1739171443864,-511.08,0.0001315,2]
[352565809,1739171443873,-622.98,0.0001315,2]
[352565810,1739171443882,-710.23,0.0001315,2]
[352565811,1739171443892,-674.73,0.0001315,2]
[352565812,1739171443901,-701.2,0.0001315,2]
[352565813,1739171443910,-985.96562688,0.00013155,2]
[352565814,1739171443919,-985.96562688,0.00013255,2]
[352565815,1739171443929,-500.0,0.00013285,2]
[352565816,1739171443938,-500.0,0.00013285,2]
[352565817,1739171443947,-507.96700096,0.00013285,2]
[352565818,1739171443958,-569.71,0.00013287,2]
[352565819,1739171443967,-5036.88,0.00013287,2]
[352565820,1739171443977,-750.28,0.00013287,2]
[352565821,1739171443987,-2056.79,0.00013287,2]
[352565822,1739171443996,-3088.79,0.00013287,2]
[352565823,1739171444006,-500.0,0.00013287,2]
[352565824,1739171444015,-511.08,0.00013287,2]
[352565825,1739171444025,-622.98,0.00013287,2]
[352565826,1739171444035,-710.23,0.00013287,2]
[352565827,1739171444045,-674.73,0.00013287,2]
[352565828,1739171444057,-701.2,0.00013287,2]
[352565829,1739171444066,-985.96562688,0.00013355,2]
[352565830,1739171444077,-500.0,0.00013385,2]
[352565831,1739171444086,-338.78550503,0.00013399,2]
[352565832,1739171444096,-569.71,0.00013424,2]
[352565833,1739171444105,-5036.88,0.00013424,2]
[352565834,1739171444117,-750.28,0.00013424,2]
[352565835,1739171444126,-2056.79,0.00013424,2]
[352565836,1739171444136,-3088.79,0.00013424,2]
[352565837,1739171444145,-500.0,0.00013424,2]
[352565838,1739171444155,-511.08,0.00013424,2]
[352565839,1739171444165,-622.98,0.00013424,2]
[352565840,1739171444175,-710.23,0.00013424,2]
[352565841,1739171444184,-674.73,0.00013424,2]
[352565842,1739171444194,-701.2,0.00013424,2]
[352565843,1739171444203,-985.96562688,0.00013455,2]
[352565844,1739171444213,-459.50475515,0.00013508,2]
[352565845,1739171444222,-985.96562688,0.00013555,2]
[352565846,1739171444233,-569.71,0.00013561,2]
[352565847,1739171444242,-5036.88,0.00013561,2]
[352565848,1739171444253,-750.28,0.00013561,2]
[352565849,1739171444262,-2056.79,0.00013561,2]
[352565850,1739171444272,-3088.79,0.00013561,2]
[352565851,1739171444282,-500.0,0.00013561,2]
[352565852,1739171444292,-511.08,0.00013561,2]
[352565853,1739171444303,-622.98,0.00013561,2]
[352565854,1739171444312,-710.23,0.00013561,2]
[352565855,1739171444322,-674.73,0.00013561,2]
[352565856,1739171444332,-701.2,0.00013561,2]
[352565857,1739171444341,-985.96562688,0.00013655,2]
[352565858,1739171444350,-152.518823,0.00013698,2]
[352565859,1739171444360,-569.71,0.00013698,2]
[352565860,1739171444370,-5036.88,0.00013698,2]
[352565861,1739171444379,-750.28,0.00013698,2]
[352565862,1739171444389,-2056.79,0.00013698,2]
[352565863,1739171444398,-3088.79,0.00013698,2]
[352565864,1739171444407,-500.0,0.00013698,2]
[352565865,1739171444417,-511.08,0.00013698,2]
[352565866,1739171444427,-622.98,0.00013698,2]
[352565867,1739171444436,-710.23,0.00013698,2]
[352565868,1739171444445,-674.73,0.00013698,2]
[352565869,1739171444455,-701.2,0.00013698,2]
[352565870,1739171444464,-1098.959312,0.00013699,2]
[352565871,1739171444473,-1279.979793,0.00013699,2]
[352565872,1739171444483,-2802.7050222,0.00013699,2]
[352565873,1739171444493,-500.0,0.00013699,2]
[352565874,1739171444502,-686.30672321,0.00013699,2]
[352565875,1739171444512,-686.30672321,0.00013699,2]
[352565876,1739171444521,-686.30672321,0.00013699,2]
[352565877,1739171444531,-686.30672321,0.00013699,2]
[352565878,1739171444541,-686.30672321,0.00013699,2]
[352565879,1739171444551,-686.30672321,0.00013699,2]
[352565880,1739171444560,-686.30672321,0.00013699,2]
[352565881,1739171444569,-686.30672321,0.00013699,2]
[352565882,1739171444579,-686.30672321,0.00013699,2]
[352565883,1739171444588,-686.30672321,0.00013699,2]
[352565884,1739171444598,-686.30672321,0.00013699,2]
[352565885,1739171444607,-686.30672321,0.00013699,2]
[352565886,1739171444617,-686.30672321,0.00013699,2]
[352565887,1739171444626,-686.30672321,0.00013699,2]
[352565888,1739171444637,-686.30672321,0.00013699,2]
[352565889,1739171444649,-686.30672321,0.00013699,2]
[352565890,1739171444659,-686.30672321,0.00013699,2]
[352565891,1739171444668,-686.30672321,0.00013699,2]
[352565892,1739171444679,-686.30672321,0.00013699,2]
[352565893,1739171444688,-686.30672321,0.00013699,2]
[352565894,1739171444697,-686.30672321,0.00013699,2]
[352565895,1739171444706,-686.30672321,0.00013699,2]
[352565896,1739171444715,-686.30672321,0.00013699,2]
[352565897,1739171444727,-686.30672321,0.00013699,2]
[352565898,1739171444737,-686.30672321,0.00013699,2]
[352565899,1739171444747,-686.30672321,0.00013699,2]
[352565900,1739171444758,-686.30672321,0.00013699,2]
[352565901,1739171444768,-686.30672321,0.00013699,2]
[352565902,1739171444778,-686.30672321,0.00013699,2]
[352565903,1739171444789,-686.30672321,0.00013699,2]
[352565904,1739171444798,-686.30672321,0.00013699,2]
[352565905,1739171444808,-686.30672321,0.00013699,2]
[352565906,1739171444818,-686.30672321,0.00013699,2]
[352565907,1739171444826,-686.30672321,0.00013699,2]
[352565908,1739171444836,-686.30672321,0.00013699,2]
[352565909,1739171444845,-458.53800468,0.00013699,2]
[352565910,1739171444863,-227.76871853,0.00013699,2]
[352565911,1739171444873,-686.30672321,0.00013699,2]
[352565912,1739171444882,-686.30672321,0.00013699,2]
[352565913,1739171444891,-686.30672321,0.00013699,2]
[352565914,1739171444901,-686.30672321,0.00013699,2]
[352565915,1739171444910,-686.30672321,0.00013699,2]
[352565916,1739171444920,-686.30672321,0.00013699,2]
[352565917,1739171444930,-686.30672321,0.00013699,2]
[352565918,1739171444940,-686.30672321,0.00013699,2]
[352565919,1739171444949,-686.30672321,0.00013699,2]
[352565920,1739171444959,-686.30672321,0.00013699,2]
[352565921,1739171444969,-686.30672321,0.00013699,2]
[352565922,1739171444979,-686.30672321,0.00013699,2]
[352565923,1739171444989,-707.4768732,0.00013699,2]
[352565924,1739171444999,-707.4768732,0.00013699,2]
[352565925,1739171445008,-11.08685655,0.00013699,2]
[352565931,1739171446814,-2433.8,0.00010958,2]
[352565948,1739172336127,-1219.58523699,9.827e-05,2]
[352565986,1739172426098,-2397.18217617,9.729e-05,2]
[352565987,1739172426124,-3780.41476301,9.827e-05,2]
[352565988,1739172426148,-2375.7539217,0.00010027,2]
[352565989,1739172426170,-400.0,0.00010685,2]
[352565990,1739172426191,-300.0,0.00010686,2]
[352565991,1739172426213,-6746.37323105,0.00010687,2]
[352565992,1739172431124,-374.0927677,0.00010687,2]
[352565993,1739172453099,-2489.89599664,0.0001058,2]
[352565994,1739172453122,-252.27432974,0.00010687,2]
[352565997,1739172549146,-3206.91379431,0.00010651,2]
[352565998,1739172558094,-3920.0,0.00010651,2]
[352566036,1739172632128,-256.55234567,0.00010633,2]
[352566037,1739172632252,-2307.0,0.00010633,2]
[352566038,1739172632263,-4875.14518711,0.00010633,2]
[352566039,1739172632273,-623.06969466,0.0001075,2]
[352566040,1739172632282,-300.0,0.00010857,2]
[352566041,1739172632292,-288.80094044,0.00010858,2]
[352566042,1739172632301,-2192.23400561,0.00010858,2]
[352566049,1739172637856,-22128.71592929,0.00010858,2]
[352566050,1739172637866,-246.56805907,0.00010957,2]
[352566051,1739172637876,-500.0,0.00010957,2]
[352566052,1739172637885,-310.27342391,0.00010957,2]
[352566053,1739172637898,-500.0,0.00010957,2]
[352566054,1739172637908,-583.3261282,0.00010957,2]
[352566055,1739172637918,-250.99945897,0.00010957,2]
[352566056,1739172637933,-500.0,0.00010957,2]
[352566057,1739172637943,-500.0,0.00010957,2]
[352566058,1739172637952,-182.74601314,0.00010957,2]
[352566059,1739172637961,-500.0,0.00010957,2]
[352566060,1739172637971,-500.0,0.00010957,2]
[352566061,1739172637980,-500.0,0.00010957,2]
[352566062,1739172637990,-500.0,0.00010958,2]
[352566063,1739172637999,-500.0,0.00010958,2]
[352566064,1739172638008,-500.0,0.00010958,2]
[352566065,1739172638020,-503.72630362,0.00010958,2]
[352566066,1739172638030,-500.0,0.00010958,2]
[352566067,1739172638039,-552.64499874,0.00010958,2]
[352566068,1739172638050,-500.0,0.00010958,2]
[352566070,1739172638060,-500.0,0.00010958,2]
[352566071,1739172638069,-500.0,0.00010958,2]
[352566072,1739172638078,-500.0,0.00010958,2]
[352566073,1739172638088,-500.0,0.00010958,2]
[352566074,1739172638099,-460.19831029,0.00010958,2]
[352566075,1739172638108,-500.0,0.00010958,2]
[352566076,1739172638118,-500.0,0.00010958,2]
[352566077,1739172638127,-500.0,0.00010958,2]
[352566078,1739172638136,-500.0,0.00010958,2]
[352566079,1739172638146,-500.0,0.00010958,2]
[352566080,1739172638156,-504.55046056,0.00010958,2]
[352566081,1739172638165,-478.42018004,0.00010958,2]
[352566082,1739172638174,-500.0,0.00010958,2]
[352566083,1739172638183,-501.19181129,0.00010958,2]
[352566084,1739172638192,-501.62185845,0.00010958,2]
[352566085,1739172638202,-500.0,0.00010958,2]
[352566086,1739172638211,-500.0,0.00010958,2]
[352566087,1739172638221,-500.0,0.00010958,2]
[352566088,1739172638230,-500.0,0.00010958,2]
[352566089,1739172638239,-500.0,0.00010958,2]
[352566090,1739172638248,-500.0,0.00010958,2]
[352566091,1739172638258,-500.0,0.00010958,2]
[352566092,1739172638268,-515.71146168,0.00010958,2]
[352566093,1739172638278,-500.0,0.00010958,2]
[352566094,1739172638287,-500.0,0.00010958,2]
[352566095,1739172638296,-272.32219955,0.00010958,2]
[352566096,1739172638306,-500.0,0.00010958,2]
[352566097,1739172638315,-500.0,0.00010958,2]
[352566098,1739172638324,-500.0,0.00010958,2]
[352566099,1739172638335,-500.0,0.00010958,2]
[352566100,1739172638344,-500.0,0.00010958,2]
[352566101,1739172638354,-500.0,0.00010958,2]
[352566102,1739172638364,-500.0,0.00010958,2]
[352566103,1739172638373,-500.0,0.00010958,2]
[352566104,1739172638382,-500.36365924,0.00010958,2]
[352566105,1739172638392,-500.0,0.00010958,2]
[352566106,1739172638401,-500.0,0.00010958,2]
[352566107,1739172638410,-500.0,0.00010958,2]
[352566108,1739172638536,-500.0,0.00010958,2]
[352566109,1739172638547,-500.0,0.00010958,2]
[352566110,1739172638556,-500.0,0.00010958,2]
[352566111,1739172638566,-500.0,0.00010958,2]
[352566112,1739172638575,-500.0,0.00010958,2]
[352566113,1739172638586,-500.0,0.00010958,2]
[352566114,1739172638595,-206.32632135,0.00010958,2]
[352566115,1739172638605,-500.0,0.00010958,2]
[352566116,1739172638614,-500.0,0.00010958,2]
[352566117,1739172638624,-500.0,0.00010958,2]
[352566118,1739172638633,-500.0,0.00010958,2]
[352566119,1739172638642,-500.0,0.00010958,2]
[352566120,1739172638651,-500.0,0.00010958,2]
[352566121,1739172638661,-500.0,0.00010958,2]
[352566122,1739172638670,-504.81806071,0.00010958,2]
[352566123,1739172638679,-500.0,0.00010958,2]
[352566124,1739172638689,-500.60980057,0.00010958,2]
[352566125,1739172638698,-312.47560951,0.00010958,2]
[352566126,1739172638707,-500.0,0.00010958,2]
[352566127,1739172638717,-500.77629688,0.00010958,2]
[352566128,1739172638726,-500.63750474,0.00010958,2]
[352566129,1739172638735,-500.0,0.00010958,2]
[352566130,1739172638744,-501.04806849,0.00010958,2]
[352566131,1739172638754,-500.0,0.00010958,2]
[352566132,1739172638763,-500.0,0.00010958,2]
[352566133,1739172638773,-500.87630365,0.00010958,2]
[352566134,1739172638782,-496.97806786,0.00010958,2]
[352566135,1739172638791,-500.0,0.00010958,2]
[352566136,1739172638800,-500.0,0.00010958,2]
[352566137,1739172638809,-500.0,0.00010958,2]
[352566138,1739172638818,-500.0,0.00010958,2]
[352566139,1739172638827,-500.0,0.00010958,2]
[352566140,1739172638836,-500.0,0.00010958,2]
[352566141,1739172638846,-500.0,0.00010958,2]
[352566142,1739172638855,-500.0,0.00010958,2]
[352566143,1739172638864,-501.48631666,0.00010958,2]
[352566144,1739172638872,-500.0,0.00010958,2]
[352566145,1739172638882,-500.0,0.00010958,2]
[352566146,1739172638891,-271.0707789,0.00010958,2]
[352566147,1739172638900,-221.14588634,0.00010958,2]
[352566148,1739172638909,-500.0,0.00010958,2]
[352566149,1739172638919,-500.0,0.00010958,2]
[352566150,1739172638928,-500.0,0.00010958,2]
[352566151,1739172638937,-500.0,0.00010958,2]
[352566152,1739172638946,-500.0,0.00010958,2]
[352566153,1739172638955,-500.0,0.00010958,2]
[352566154,1739172638964,-500.0,0.00010958,2]
[352566155,1739172638974,-500.0,0.00010958,2]
[352566156,1739172638982,-500.0,0.00010958,2]
[352566157,1739172638991,-500.0,0.00010958,2]
[352566158,1739172639001,-500.0,0.00010958,2]
[352566159,1739172639011,-505.5855474,0.00010958,2]
[352566160,1739172639020,-500.0,0.00010958,2]
[352566161,1739172639029,-500.0,0.00010958,2]
[352566162,1739172639038,-185.44803579,0.00010958,2]
[352566163,1739172639050,-506.51379589,0.00010958,2]
[352566164,1739172639059,-500.0,0.00010958,2]
[352566165,1739172639069,-500.0,0.00010958,2]
[352566166,1739172639078,-501.22811931,0.00010958,2]
[352566167,1739172639087,-500.0,0.00010958,2]
[352566168,1739172639097,-599.35161429,0.00010958,2]
[352566169,1739172639107,-500.0,0.00010958,2]
[352566170,1739172639116,-500.0,0.00010958,2]
[352566171,1739172639126,-496.49889218,0.00010958,2]
[352566172,1739172639136,-500.0,0.00010958,2]
[352566173,1739172639146,-500.0,0.00010958,2]
[352566174,1739172639155,-502.3125913,0.00010958,2]
[352566175,1739172639164,-500.0,0.00010958,2]
[352566176,1739172639174,-500.0,0.00010958,2]
[352566177,1739172639183,-500.0,0.00010958,2]
[352566178,1739172639193,-500.0,0.00010958,2]
[352566179,1739172639202,-500.0,0.00010958,2]
[352566180,1739172639212,-389.21503979,0.00010958,2]
[352566181,1739172639221,-500.0,0.00010958,2]
[352566182,1739172639231,-500.0,0.00010958,2]
[352566183,1739172639240,-500.0,0.00010958,2]
[352566184,1739172639249,-500.0,0.00010958,2]
[352566185,1739172639259,-500.0,0.00010958,2]
[352566186,1739172639268,-501.99375665,0.00010958,2]
[352566187,1739172639277,-302.78814279,0.00010958,2]
[352566188,1739172639287,-500.0,0.00010958,2]
[352566189,1739172639296,-500.0,0.00010958,2]
[352566190,1739172639306,-500.0,0.00010958,2]
[352566191,1739172639315,-500.0,0.00010958,2]
[352566192,1739172639324,-500.0,0.00010958,2]
[352566193,1739172639333,-500.0,0.00010958,2]
[352566194,1739172639343,-500.0,0.00010958,2]
[352566195,1739172639352,-500.0,0.00010958,2]
[352566196,1739172639362,-500.0,0.00010958,2]
[352566197,1739172639372,-500.0,0.00010958,2]
[352566198,1739172639381,-500.0,0.00010958,2]
[352566199,1739172639390,-500.0,0.00010958,2]
[352566200,1739172639399,-500.0,0.00010958,2]
[352566201,1739172639409,-501.18379253,0.00010958,2]
[352566202,1739172639418,-501.81853841,0.00010958,2]
[352566203,1739172639427,-500.0,0.00010958,2]
[352566204,1739172639437,-500.0,0.00010958,2]
[352566205,1739172639446,-500.0,0.00010958,2]
[352566206,1739172639455,-500.0,0.00010958,2]
[352566207,1739172639465,-500.0,0.00010958,2]
[352566208,1739172639474,-500.0,0.00010958,2]
[352566209,1739172639483,-500.0,0.00010958,2]
[352566210,1739172639492,-501.70311074,0.00010958,2]
[352566211,1739172639501,-500.0,0.00010958,2]
[352566212,1739172639510,-500.0,0.00010958,2]
[352566213,1739172639519,-500.0,0.00010958,2]
[352566214,1739172639528,-500.0,0.00010958,2]
[352566215,1739172639538,-500.0,0.00010958,2]
[352566216,1739172639547,-500.0,0.00010958,2]
[352566217,1739172639557,-500.0,0.00010958,2]
[352566218,1739172639566,-500.0,0.00010958,2]
[352566219,1739172639575,-506.01293089,0.00010958,2]
[352566220,1739172639585,-500.0,0.00010958,2]
[352566221,1739172639595,-500.0,0.00010958,2]
[352566222,1739172639604,-500.0,0.00010958,2]
[352566223,1739172639612,-212.2651117,0.00010958,2]
[352566224,1739172639622,-500.0,0.00010958,2]
[352566225,1739172639631,-500.0,0.00010958,2]
[352566226,1739172639640,-500.0,0.00010958,2]